[Event "Late-Titled-Tuesday-Blitz-January-30-2024"]
[Site "Chess.com"]
[Date "2024.01.30"]
[Round "2"]
[White "Evgeny81"]
[Black "Sacbutt"]
[Result "1-0"]
[WhiteElo "2713"]
[BlackElo "2368"]
[TimeControl "180+1"]
[EndTime "14:14:23 PST"]
[Termination "Evgeny81 won by resignation"]

1. e4 {[%clk 0:03:00.9]} 1... c5 {[%clk 0:02:58.1]} 2. Nf3 {[%clk 0:03:01]} 2...
d6 {[%clk 0:02:58.5]} 3. d4 {[%clk 0:03:00.1]} 3... cxd4 {[%clk 0:02:59.4]} 4.
Nxd4 {[%clk 0:03:00.5]} 4... Nf6 {[%clk 0:03:00]} 5. Nc3 {[%clk 0:03:00.9]} 5...
a6 {[%clk 0:03:00.7]} 6. f3 {[%clk 0:02:59]} 6... e5 {[%clk 0:03:00.9]} 7. Nb3
{[%clk 0:02:58.5]} 7... Be6 {[%clk 0:03:01.1]} 8. Be3 {[%clk 0:02:58.7]} 8...
Nbd7 {[%clk 0:03:01.7]} 9. Qd2 {[%clk 0:02:58.4]} 9... b5 {[%clk 0:03:01.9]} 10.
g4 {[%clk 0:02:57.2]} 10... Nb6 {[%clk 0:03:02.3]} 11. g5 {[%clk 0:02:55.7]}
11... Nfd7 {[%clk 0:03:02.4]} 12. h4 {[%clk 0:02:55.4]} 12... Be7 {[%clk
0:02:58.1]} 13. O-O-O {[%clk 0:02:48.3]} 13... Nc4 {[%clk 0:02:55.9]} 14. Qf2
{[%clk 0:02:44]} 14... O-O {[%clk 0:02:50.4]} 15. Kb1 {[%clk 0:02:39]} 15...
Nxe3 {[%clk 0:02:39.1]} 16. Qxe3 {[%clk 0:02:39.9]} 16... Qc7 {[%clk 0:02:36.8]}
17. Bh3 {[%clk 0:02:36.4]} 17... Nb6 {[%clk 0:02:29.1]} 18. h5 {[%clk
0:02:30.3]} 18... Nc4 {[%clk 0:02:27.3]} 19. Qc1 {[%clk 0:02:30.4]} 19... Rac8
{[%clk 0:02:02.7]} 20. g6 {[%clk 0:02:21.6]} 20... Nxb2 {[%clk 0:01:51.9]} 21.
gxf7+ {[%clk 0:02:16.4]} 21... Kxf7 {[%clk 0:01:41.6]} 22. Bxe6+ {[%clk
0:02:03.3]} 22... Kxe6 {[%clk 0:01:40.3]} 23. Nd5 {[%clk 0:02:04.2]} 23... Qc4
{[%clk 0:01:24.9]} 24. Qxb2 {[%clk 0:01:55.3]} 24... Rxf3 {[%clk 0:01:24.6]} 25.
Nb6 {[%clk 0:01:46.1]} 1-0

[Event "Late-Titled-Tuesday-Blitz-January-30-2024"]
[Site "Chess.com"]
[Date "2024.01.30"]
[Round "2"]
[White "DavidGavrilescu18"]
[Black "guillembaches"]
[Result "1-0"]
[WhiteElo "2773"]
[BlackElo "2543"]
[TimeControl "180+1"]
[EndTime "14:14:44 PST"]
[Termination "DavidGavrilescu18 won on time"]

1. e4 {[%clk 0:02:56.7]} 1... d5 {[%clk 0:03:00]} 2. exd5 {[%clk 0:02:56.3]}
2... Qxd5 {[%clk 0:03:00.9]} 3. Nf3 {[%clk 0:02:56.8]} 3... Bg4 {[%clk
0:03:00.3]} 4. Be2 {[%clk 0:02:57]} 4... Nc6 {[%clk 0:03:00.7]} 5. d4 {[%clk
0:02:56.7]} 5... O-O-O {[%clk 0:02:52.5]} 6. c4 {[%clk 0:02:55.6]} 6... Qf5
{[%clk 0:02:47.4]} 7. Be3 {[%clk 0:02:55.6]} 7... Bxf3 {[%clk 0:02:30.6]} 8.
Bxf3 {[%clk 0:02:56.5]} 8... Nxd4 {[%clk 0:02:30.8]} 9. Bxd4 {[%clk 0:02:57]}
9... Qe6+ {[%clk 0:02:31]} 10. Be2 {[%clk 0:02:57.7]} 10... Qe4 {[%clk
0:02:18.7]} 11. O-O {[%clk 0:02:52]} 11... Qxd4 {[%clk 0:02:15.3]} 12. Qa4
{[%clk 0:02:51.2]} 12... e5 {[%clk 0:01:46.1]} 13. Nc3 {[%clk 0:02:37.9]} 13...
a6 {[%clk 0:01:45.2]} 14. Rfd1 {[%clk 0:02:24.9]} 14... Qb6 {[%clk 0:01:17.3]}
15. Bg4+ {[%clk 0:02:22.7]} 1-0

[Event "Late-Titled-Tuesday-Blitz-January-30-2024"]
[Site "Chess.com"]
[Date "2024.01.30"]
[Round "2"]
[White "j_coca"]
[Black "jamengrand"]
[Result "0-1"]
[WhiteElo "2497"]
[BlackElo "2272"]
[TimeControl "180+1"]
[EndTime "14:14:56 PST"]
[Termination "jamengrand won by resignation"]

1. f4 {[%clk 0:02:47.5]} 1... e5 {[%clk 0:02:58.9]} 2. fxe5 {[%clk 0:02:47.1]}
2... d6 {[%clk 0:02:58.5]} 3. exd6 {[%clk 0:02:46.2]} 3... Nf6 {[%clk
0:02:58.6]} 4. dxc7 {[%clk 0:02:43.2]} 4... Qxc7 {[%clk 0:02:58]} 5. Nf3 {[%clk
0:02:43.7]} 5... Bd6 {[%clk 0:02:57.7]} 6. d3 {[%clk 0:02:42]} 6... Ng4 {[%clk
0:02:53.5]} 7. e4 {[%clk 0:02:38.7]} 7... Bxh2 {[%clk 0:02:49.3]} 8. Nxh2 {[%clk
0:02:31]} 8... Qg3+ {[%clk 0:02:49.1]} 9. Kd2 {[%clk 0:02:30.2]} 9... Qe3+
{[%clk 0:02:28.3]} 10. Kc3 {[%clk 0:02:29.7]} 10... Qc5+ {[%clk 0:02:28.2]} 11.
Kb3 {[%clk 0:02:25.2]} 11... Nf2 {[%clk 0:02:20.3]} 12. Qf3 {[%clk 0:02:20.6]}
12... Nc6 {[%clk 0:02:06.3]} 13. c3 {[%clk 0:02:16.1]} 13... Be6+ {[%clk
0:01:53.8]} 14. Kc2 {[%clk 0:02:15.5]} 14... Nd4+ {[%clk 0:01:53.3]} 15. Kd2
{[%clk 0:02:13.5]} 15... Nxf3+ {[%clk 0:01:52.3]} 16. Nxf3 {[%clk 0:02:13.7]}
16... Nxh1 {[%clk 0:01:52.5]} 17. d4 {[%clk 0:02:13.3]} 17... O-O-O {[%clk
0:01:52.2]} 18. Bd3 {[%clk 0:02:13.1]} 18... Qh5 {[%clk 0:01:51]} 19. Kc2 {[%clk
0:02:12.4]} 19... Bg4 {[%clk 0:01:50.3]} 20. Ne5 {[%clk 0:02:10.6]} 20... Bd1+
{[%clk 0:01:47.6]} 21. Kd2 {[%clk 0:02:09.4]} 21... Nf2 {[%clk 0:01:44]} 22. Bc4
{[%clk 0:02:02.7]} 22... Qxe5 {[%clk 0:01:42.1]} 23. Ke1 {[%clk 0:02:01.4]}
23... Qg3 {[%clk 0:01:38.7]} 24. Nd2 {[%clk 0:01:58.2]} 24... Bc2 {[%clk
0:01:35.5]} 25. Ke2 {[%clk 0:01:57.4]} 25... Rhe8 {[%clk 0:01:31.6]} 26. e5
{[%clk 0:01:57]} 26... Bd3+ {[%clk 0:01:24.1]} 27. Bxd3 {[%clk 0:01:56.4]} 27...
Nxd3 {[%clk 0:01:24.3]} 28. Nf3 {[%clk 0:01:56.5]} 28... Nxc1+ {[%clk
0:01:20.3]} 29. Rxc1 {[%clk 0:01:56]} 29... Qxg2+ {[%clk 0:01:20.5]} 30. Ke3
{[%clk 0:01:55.9]} 30... Qxb2 {[%clk 0:01:19.9]} 31. Rg1 {[%clk 0:01:52.3]}
31... Qxc3+ {[%clk 0:01:19.7]} 32. Ke4 {[%clk 0:01:52.7]} 32... Rxd4+ {[%clk
0:01:12.1]} 33. Nxd4 {[%clk 0:01:52.2]} 33... Rxe5+ {[%clk 0:01:12.3]} 34. Kxe5
{[%clk 0:01:51.5]} 34... Qe3+ {[%clk 0:01:12.8]} 35. Kd5 {[%clk 0:01:52.1]}
35... Qxg1 {[%clk 0:01:12.8]} 0-1

[Event "Late-Titled-Tuesday-Blitz-January-30-2024"]
[Site "Chess.com"]
[Date "2024.01.30"]
[Round "2"]
[White "Orest_Vovk"]
[Black "MajorCoast"]
[Result "1-0"]
[WhiteElo "2501"]
[BlackElo "2218"]
[TimeControl "180+1"]
[EndTime "14:15:07 PST"]
[Termination "Orest_Vovk won by resignation"]

1. g4 {[%clk 0:02:56.3]} 1... h5 {[%clk 0:02:58]} 2. g5 {[%clk 0:02:56.2]} 2...
g6 {[%clk 0:02:57.9]} 3. Bg2 {[%clk 0:02:55.7]} 3... Bg7 {[%clk 0:02:57.8]} 4.
Nc3 {[%clk 0:02:54.7]} 4... c6 {[%clk 0:02:57]} 5. d4 {[%clk 0:02:53.9]} 5... d5
{[%clk 0:02:56.9]} 6. Nf3 {[%clk 0:02:53.6]} 6... Bg4 {[%clk 0:02:56.5]} 7. h3
{[%clk 0:02:52.2]} 7... Bxf3 {[%clk 0:02:56.5]} 8. Bxf3 {[%clk 0:02:52.3]} 8...
e6 {[%clk 0:02:57.4]} 9. Bf4 {[%clk 0:02:52.1]} 9... Nd7 {[%clk 0:02:56.7]} 10.
Qd3 {[%clk 0:02:51.1]} 10... Ne7 {[%clk 0:02:55.8]} 11. O-O-O {[%clk 0:02:50.9]}
11... b5 {[%clk 0:02:56.1]} 12. e4 {[%clk 0:02:50.9]} 12... b4 {[%clk
0:02:54.2]} 13. Na4 {[%clk 0:02:50.1]} 13... Qa5 {[%clk 0:02:39.8]} 14. b3
{[%clk 0:02:35.5]} 14... Nb6 {[%clk 0:02:31.3]} 15. Nc5 {[%clk 0:02:31.5]} 15...
Qa3+ {[%clk 0:02:29.4]} 16. Kb1 {[%clk 0:02:26.9]} 16... Nd7 {[%clk 0:02:18.5]}
17. Nb7 {[%clk 0:02:08.4]} 17... Nb8 {[%clk 0:01:49.6]} 18. Be2 {[%clk
0:01:37.8]} 18... O-O {[%clk 0:01:43.9]} 19. Bc1 {[%clk 0:01:27]} 19... dxe4
{[%clk 0:01:43.3]} 20. Qxe4 {[%clk 0:01:19]} 20... Qxa2+ {[%clk 0:01:41.6]} 21.
Kxa2 {[%clk 0:01:18.2]} 21... Nd5 {[%clk 0:01:42.5]} 22. Bb2 {[%clk 0:01:13.7]}
22... a5 {[%clk 0:01:38.4]} 23. Nc5 {[%clk 0:00:55.4]} 23... a4 {[%clk
0:01:36.1]} 24. Nxa4 {[%clk 0:00:54.8]} 24... Rxa4+ {[%clk 0:01:33.6]} 25. bxa4
{[%clk 0:00:54.2]} 25... Na6 {[%clk 0:01:33.3]} 26. Bxa6 {[%clk 0:00:53.6]} 1-0

[Event "Late-Titled-Tuesday-Blitz-January-30-2024"]
[Site "Chess.com"]
[Date "2024.01.30"]
[Round "2"]
[White "KnobbedHornbill"]
[Black "Hui_Li_Macau"]
[Result "0-1"]
[WhiteElo "2524"]
[BlackElo "2331"]
[TimeControl "180+1"]
[EndTime "14:15:10 PST"]
[Termination "Hui_Li_Macau won by resignation"]

1. d4 {[%clk 0:03:00.9]} 1... d5 {[%clk 0:03:00.1]} 2. c4 {[%clk 0:03:01.5]}
2... e6 {[%clk 0:03:00.5]} 3. Nf3 {[%clk 0:03:02.1]} 3... Nf6 {[%clk 0:03:00.8]}
4. g3 {[%clk 0:03:02.7]} 4... dxc4 {[%clk 0:03:01]} 5. Bg2 {[%clk 0:03:02.9]}
5... Be7 {[%clk 0:03:01.6]} 6. O-O {[%clk 0:03:03.1]} 6... O-O {[%clk
0:03:02.3]} 7. Qc2 {[%clk 0:03:03.6]} 7... a6 {[%clk 0:03:01.8]} 8. a4 {[%clk
0:03:04.2]} 8... Bd7 {[%clk 0:03:02.1]} 9. Qxc4 {[%clk 0:03:04.4]} 9... Bc6
{[%clk 0:03:02.4]} 10. Bf4 {[%clk 0:03:05]} 10... a5 {[%clk 0:03:00.5]} 11. Nc3
{[%clk 0:03:05.4]} 11... Na6 {[%clk 0:03:00.7]} 12. Rfd1 {[%clk 0:03:04]} 12...
Nb4 {[%clk 0:03:00.2]} 13. Bg5 {[%clk 0:03:04]} 13... Bd5 {[%clk 0:02:49.8]} 14.
Nxd5 {[%clk 0:02:57.8]} 14... exd5 {[%clk 0:02:44.5]} 15. Qc1 {[%clk 0:02:49.4]}
15... c6 {[%clk 0:02:40.6]} 16. Ne5 {[%clk 0:02:37.1]} 16... Nd7 {[%clk
0:02:38.9]} 17. Bf4 {[%clk 0:02:35.4]} 17... Nxe5 {[%clk 0:02:36.6]} 18. Bxe5
{[%clk 0:02:32.3]} 18... Bd6 {[%clk 0:02:18.3]} 19. Bf4 {[%clk 0:02:21.8]} 19...
Re8 {[%clk 0:02:11.7]} 20. Bxd6 {[%clk 0:02:13.8]} 20... Qxd6 {[%clk 0:02:11.7]}
21. e3 {[%clk 0:02:14.7]} 21... g6 {[%clk 0:01:58.4]} 22. Qc3 {[%clk 0:02:13.1]}
22... Re7 {[%clk 0:01:55]} 23. b3 {[%clk 0:02:10.2]} 23... Ree8 {[%clk
0:01:52.4]} 24. Re1 {[%clk 0:02:07.4]} 24... Re7 {[%clk 0:01:51.1]} 25. Rad1
{[%clk 0:02:07.4]} 25... Rae8 {[%clk 0:01:45.8]} 26. Bf3 {[%clk 0:02:07.1]}
26... Qf6 {[%clk 0:01:44.6]} 27. Kg2 {[%clk 0:02:07.1]} 27... Qd6 {[%clk
0:01:39.1]} 28. h4 {[%clk 0:02:05.8]} 28... h5 {[%clk 0:01:34.6]} 29. g4 {[%clk
0:01:46]} 29... hxg4 {[%clk 0:01:32.7]} 30. Bxg4 {[%clk 0:01:46.9]} 30... Re4
{[%clk 0:01:24.8]} 31. f3 {[%clk 0:01:38.1]} 31... R4e7 {[%clk 0:01:22]} 32. Rh1
{[%clk 0:01:33.7]} 32... Rxe3 {[%clk 0:01:17.8]} 0-1

[Event "Late-Titled-Tuesday-Blitz-January-30-2024"]
[Site "Chess.com"]
[Date "2024.01.30"]
[Round "2"]
[White "js20000"]
[Black "masnyszachistaaa"]
[Result "1-0"]
[WhiteElo "2770"]
[BlackElo "2543"]
[TimeControl "180+1"]
[EndTime "14:15:11 PST"]
[Termination "js20000 won by resignation"]

1. d4 {[%clk 0:03:00.9]} 1... d5 {[%clk 0:02:52]} 2. c4 {[%clk 0:02:58.1]} 2...
c6 {[%clk 0:02:52.2]} 3. Nc3 {[%clk 0:02:53.5]} 3... Nf6 {[%clk 0:02:51.9]} 4.
cxd5 {[%clk 0:02:53.7]} 4... cxd5 {[%clk 0:02:52.8]} 5. Bf4 {[%clk 0:02:52.8]}
5... Nc6 {[%clk 0:02:51.7]} 6. e3 {[%clk 0:02:53.2]} 6... Bf5 {[%clk 0:02:48.9]}
7. Qb3 {[%clk 0:02:53.3]} 7... Na5 {[%clk 0:02:34.7]} 8. Qa4+ {[%clk 0:02:53]}
8... Bd7 {[%clk 0:02:31.5]} 9. Qc2 {[%clk 0:02:51.9]} 9... e6 {[%clk 0:02:28.7]}
10. Nf3 {[%clk 0:02:51.4]} 10... Rc8 {[%clk 0:02:27.8]} 11. Bd3 {[%clk
0:02:47.8]} 11... Be7 {[%clk 0:02:18.2]} 12. Ne5 {[%clk 0:02:39.8]} 12... O-O
{[%clk 0:02:10.3]} 13. O-O {[%clk 0:02:21]} 13... a6 {[%clk 0:02:10.4]} 14. h3
{[%clk 0:02:09.8]} 14... b5 {[%clk 0:02:07.9]} 15. Qe2 {[%clk 0:02:08.5]} 15...
Nc4 {[%clk 0:02:05.1]} 16. Rac1 {[%clk 0:02:04.7]} 16... h6 {[%clk 0:01:53.4]}
17. b3 {[%clk 0:01:57.1]} 17... Nb6 {[%clk 0:01:47.3]} 18. Rc2 {[%clk
0:01:50.6]} 18... Bb4 {[%clk 0:01:42.8]} 19. Rfc1 {[%clk 0:01:49.2]} 19... Ba3
{[%clk 0:01:42.1]} 20. Rd1 {[%clk 0:01:49.5]} 20... Qe7 {[%clk 0:01:42]} 21. g4
{[%clk 0:01:39.8]} 21... Bb4 {[%clk 0:01:40.7]} 22. Rdc1 {[%clk 0:01:39.1]}
22... Ba3 {[%clk 0:01:40.6]} 23. Rd1 {[%clk 0:01:30.4]} 23... Bb4 {[%clk
0:01:41]} 24. Nb1 {[%clk 0:01:29.6]} 24... Rxc2 {[%clk 0:01:41.2]} 25. Bxc2
{[%clk 0:01:30.5]} 25... Ne4 {[%clk 0:01:40.9]} 26. f3 {[%clk 0:01:29.5]} 26...
Nc3 {[%clk 0:01:37.3]} 27. Nxc3 {[%clk 0:01:27.1]} 27... Bxc3 {[%clk 0:01:38.2]}
28. Qd3 {[%clk 0:01:27.4]} 28... f5 {[%clk 0:01:27.5]} 29. Qxc3 {[%clk
0:01:21.7]} 29... Re8 {[%clk 0:01:28.4]} 30. Qc5 {[%clk 0:01:18.4]} 30... Qd8
{[%clk 0:01:24.8]} 31. gxf5 {[%clk 0:01:09]} 31... exf5 {[%clk 0:01:24.6]} 32.
Nxd7 {[%clk 0:01:07]} 1-0

[Event "Late-Titled-Tuesday-Blitz-January-30-2024"]
[Site "Chess.com"]
[Date "2024.01.30"]
[Round "2"]
[White "Anar_Aliakbarov"]
[Black "dropstoneDP"]
[Result "1/2-1/2"]
[WhiteElo "2658"]
[BlackElo "3054"]
[TimeControl "180+1"]
[EndTime "14:15:15 PST"]
[Termination "Game drawn by repetition"]

1. d4 {[%clk 0:03:00.9]} 1... d5 {[%clk 0:02:59.6]} 2. c4 {[%clk 0:02:59.7]}
2... dxc4 {[%clk 0:03:00.5]} 3. Nf3 {[%clk 0:02:59.3]} 3... Nf6 {[%clk
0:03:00.9]} 4. e3 {[%clk 0:02:59.8]} 4... e6 {[%clk 0:03:01.4]} 5. Bxc4 {[%clk
0:03:00.4]} 5... c5 {[%clk 0:03:01.9]} 6. Nc3 {[%clk 0:02:59.3]} 6... Nc6 {[%clk
0:03:00.3]} 7. O-O {[%clk 0:02:56.5]} 7... a6 {[%clk 0:02:59.9]} 8. dxc5 {[%clk
0:02:56]} 8... Qxd1 {[%clk 0:02:57.3]} 9. Rxd1 {[%clk 0:02:56.9]} 9... Bxc5
{[%clk 0:02:57.1]} 10. a3 {[%clk 0:02:56.9]} 10... O-O {[%clk 0:02:55.6]} 11. b4
{[%clk 0:02:56.6]} 11... Be7 {[%clk 0:02:56.1]} 12. Be2 {[%clk 0:02:56.2]} 12...
b5 {[%clk 0:02:56.2]} 13. Bb2 {[%clk 0:02:48.6]} 13... Bb7 {[%clk 0:02:33.1]}
14. Rac1 {[%clk 0:02:29.6]} 14... Rfd8 {[%clk 0:02:27.3]} 15. Kf1 {[%clk
0:02:21.3]} 15... Kf8 {[%clk 0:02:24.7]} 16. Rxd8+ {[%clk 0:02:09.7]} 16... Rxd8
{[%clk 0:02:25.6]} 17. Rd1 {[%clk 0:02:07.8]} 17... Rxd1+ {[%clk 0:02:23.4]} 18.
Nxd1 {[%clk 0:01:59.4]} 18... Nd5 {[%clk 0:02:23]} 19. Ne5 {[%clk 0:01:51.6]}
19... Nxe5 {[%clk 0:02:22.7]} 20. Bxe5 {[%clk 0:01:52.5]} 20... f6 {[%clk
0:02:11.8]} 21. Bb2 {[%clk 0:01:41.7]} 21... e5 {[%clk 0:02:04.9]} 22. Bf3
{[%clk 0:01:36.1]} 22... Kf7 {[%clk 0:02:04.9]} 23. Nc3 {[%clk 0:01:29.4]} 23...
Ke6 {[%clk 0:02:05]} 24. Ke1 {[%clk 0:01:21.8]} 24... Bc6 {[%clk 0:02:02]} 25.
Kd2 {[%clk 0:01:08.5]} 25... Kd6 {[%clk 0:01:55.5]} 26. Ne4+ {[%clk 0:00:29.7]}
26... Ke6 {[%clk 0:01:53.2]} 27. Nc3 {[%clk 0:00:29.3]} 27... Kd6 {[%clk
0:01:53.5]} 28. Ne4+ {[%clk 0:00:29.5]} 28... Ke6 {[%clk 0:01:52.8]} 29. Nc3
{[%clk 0:00:29.6]} 1/2-1/2

[Event "Late-Titled-Tuesday-Blitz-January-30-2024"]
[Site "Chess.com"]
[Date "2024.01.30"]
[Round "2"]
[White "manitodeplomo"]
[Black "annacramling"]
[Result "1-0"]
[WhiteElo "2690"]
[BlackElo "2106"]
[TimeControl "180+1"]
[EndTime "14:15:15 PST"]
[Termination "manitodeplomo won by checkmate"]

1. d4 {[%clk 0:02:50]} 1... Nf6 {[%clk 0:02:58.8]} 2. c4 {[%clk 0:02:50.3]} 2...
e6 {[%clk 0:02:58.8]} 3. Nf3 {[%clk 0:02:50.4]} 3... d5 {[%clk 0:02:58.8]} 4.
Nc3 {[%clk 0:02:50]} 4... c6 {[%clk 0:02:58.9]} 5. Bg5 {[%clk 0:02:50.1]} 5...
Be7 {[%clk 0:02:59.1]} 6. e3 {[%clk 0:02:49.9]} 6... O-O {[%clk 0:02:58.9]} 7.
Qc2 {[%clk 0:02:50]} 7... Ne4 {[%clk 0:02:51.7]} 8. Bxe7 {[%clk 0:02:48.1]} 8...
Qxe7 {[%clk 0:02:51.5]} 9. Bd3 {[%clk 0:02:47.2]} 9... f5 {[%clk 0:02:51.3]} 10.
O-O {[%clk 0:02:46.7]} 10... Nd7 {[%clk 0:02:51.3]} 11. Rab1 {[%clk 0:02:46.3]}
11... a5 {[%clk 0:02:50.1]} 12. Ne2 {[%clk 0:02:40.8]} 12... Ndf6 {[%clk
0:02:46.6]} 13. c5 {[%clk 0:02:30.2]} 13... Bd7 {[%clk 0:02:26.3]} 14. b4 {[%clk
0:02:27.8]} 14... axb4 {[%clk 0:02:22.5]} 15. Rxb4 {[%clk 0:02:28.7]} 15... Be8
{[%clk 0:02:22.9]} 16. Rfb1 {[%clk 0:02:26]} 16... Ra7 {[%clk 0:02:07.9]} 17.
Qb2 {[%clk 0:02:25.6]} 17... Bh5 {[%clk 0:00:57.1]} 18. Rxb7 {[%clk 0:02:21.5]}
18... Rxb7 {[%clk 0:00:49.5]} 19. Qxb7 {[%clk 0:02:22.4]} 19... Qxb7 {[%clk
0:00:47.9]} 20. Rxb7 {[%clk 0:02:23.3]} 20... Bxf3 {[%clk 0:00:43.3]} 21. gxf3
{[%clk 0:02:24.2]} 21... Nd2 {[%clk 0:00:41.8]} 22. Kg2 {[%clk 0:02:23.2]} 22...
Ra8 {[%clk 0:00:39.6]} 23. Nf4 {[%clk 0:02:22.4]} 23... Rxa2 {[%clk 0:00:05.9]}
24. Nxe6 {[%clk 0:02:21.3]} 24... Nh5 {[%clk 0:00:01.4]} 25. Bxf5 {[%clk
0:02:17.8]} 25... g6 {[%clk 0:00:01.3]} 26. Bg4 {[%clk 0:02:17.8]} 26... Nf6
{[%clk 0:00:01.4]} 27. Rg7+ {[%clk 0:02:18]} 27... Kh8 {[%clk 0:00:01.5]} 28.
Rf7 {[%clk 0:02:18.6]} 28... Nxg4 {[%clk 0:00:01.7]} 29. Rf8# {[%clk 0:02:18.2]}
1-0

[Event "Late-Titled-Tuesday-Blitz-January-30-2024"]
[Site "Chess.com"]
[Date "2024.01.30"]
[Round "2"]
[White "jinxy2009"]
[Black "subham777"]
[Result "0-1"]
[WhiteElo "2205"]
[BlackElo "2495"]
[TimeControl "180+1"]
[EndTime "14:15:16 PST"]
[Termination "subham777 won by resignation"]

1. e4 {[%clk 0:03:00.9]} 1... e6 {[%clk 0:02:59.8]} 2. d4 {[%clk 0:02:59.5]}
2... d5 {[%clk 0:02:59.8]} 3. e5 {[%clk 0:02:59.2]} 3... c5 {[%clk 0:02:59.8]}
4. c3 {[%clk 0:02:59.1]} 4... Nc6 {[%clk 0:03:00.3]} 5. Nf3 {[%clk 0:02:58.9]}
5... Qb6 {[%clk 0:03:00.6]} 6. Bd3 {[%clk 0:02:52.8]} 6... cxd4 {[%clk
0:02:59.1]} 7. O-O {[%clk 0:02:53.1]} 7... Bd7 {[%clk 0:02:53.8]} 8. Re1 {[%clk
0:02:44.4]} 8... Nge7 {[%clk 0:02:42.6]} 9. h4 {[%clk 0:02:40.4]} 9... g6 {[%clk
0:02:33.9]} 10. Na3 {[%clk 0:02:36]} 10... a6 {[%clk 0:02:24.7]} 11. c4 {[%clk
0:02:25]} 11... Na5 {[%clk 0:02:10.5]} 12. b4 {[%clk 0:01:40.9]} 12... Qxb4
{[%clk 0:01:57.6]} 13. Rb1 {[%clk 0:01:40.3]} 13... Qc5 {[%clk 0:01:54.5]} 14.
Qe2 {[%clk 0:00:19.8]} 14... Rc8 {[%clk 0:01:47.8]} 15. cxd5 {[%clk 0:00:08.2]}
15... Nxd5 {[%clk 0:01:47.2]} 16. Nc2 {[%clk 0:00:08.3]} 16... Nc3 {[%clk
0:01:45.2]} 0-1

[Event "Late-Titled-Tuesday-Blitz-January-30-2024"]
[Site "Chess.com"]
[Date "2024.01.30"]
[Round "2"]
[White "alexrustemov"]
[Black "Smile2005"]
[Result "1-0"]
[WhiteElo "2775"]
[BlackElo "2448"]
[TimeControl "180+1"]
[EndTime "14:15:32 PST"]
[Termination "alexrustemov won by resignation"]

1. d4 {[%clk 0:03:00.9]} 1... Nf6 {[%clk 0:02:59.2]} 2. c4 {[%clk 0:03:00.4]}
2... e6 {[%clk 0:02:59.4]} 3. Nf3 {[%clk 0:03:00.2]} 3... d5 {[%clk 0:02:59.7]}
4. Nc3 {[%clk 0:03:00]} 4... Nbd7 {[%clk 0:02:59.5]} 5. Bg5 {[%clk 0:02:58.2]}
5... c6 {[%clk 0:02:59.8]} 6. e3 {[%clk 0:02:57.9]} 6... Be7 {[%clk 0:02:58.9]}
7. Qc2 {[%clk 0:02:57.4]} 7... Nh5 {[%clk 0:02:58.8]} 8. Bxe7 {[%clk 0:02:55.3]}
8... Qxe7 {[%clk 0:02:59.7]} 9. Be2 {[%clk 0:02:53.1]} 9... g6 {[%clk
0:02:53.6]} 10. O-O {[%clk 0:02:52.8]} 10... O-O {[%clk 0:02:51.4]} 11. Rac1
{[%clk 0:02:50.6]} 11... Ng7 {[%clk 0:02:50.7]} 12. Rfd1 {[%clk 0:02:46.7]}
12... Re8 {[%clk 0:02:47]} 13. a3 {[%clk 0:02:32.2]} 13... a5 {[%clk 0:02:36.6]}
14. h3 {[%clk 0:02:27.2]} 14... Nf5 {[%clk 0:02:34.8]} 15. Bd3 {[%clk
0:02:20.2]} 15... Nh4 {[%clk 0:02:32.9]} 16. Nxh4 {[%clk 0:02:12.7]} 16... Qxh4
{[%clk 0:02:33.8]} 17. e4 {[%clk 0:01:57.6]} 17... dxc4 {[%clk 0:02:29]} 18.
Bxc4 {[%clk 0:01:57.5]} 18... e5 {[%clk 0:02:29]} 19. d5 {[%clk 0:01:55.9]}
19... Nf6 {[%clk 0:02:24.6]} 20. dxc6 {[%clk 0:01:52.9]} 20... bxc6 {[%clk
0:02:21.4]} 21. Rd6 {[%clk 0:01:52.1]} 21... Nh5 {[%clk 0:02:11.5]} 22. Ne2
{[%clk 0:01:43.3]} 22... Bxh3 {[%clk 0:02:05.1]} 23. gxh3 {[%clk 0:01:41.2]}
23... Qxh3 {[%clk 0:02:05.2]} 24. Qb3 {[%clk 0:01:31.4]} 24... Qg4+ {[%clk
0:01:59.8]} 25. Ng3 {[%clk 0:01:31.5]} 25... Nf4 {[%clk 0:01:52.6]} 26. Bxf7+
{[%clk 0:01:26.8]} 26... Kh8 {[%clk 0:01:50.2]} 27. Bxe8 {[%clk 0:01:26.8]}
27... Ne2+ {[%clk 0:01:34.6]} 28. Kf1 {[%clk 0:01:26.8]} 28... Nxc1 {[%clk
0:01:31.8]} 29. Qf7 {[%clk 0:01:21.6]} 29... Rxe8 {[%clk 0:01:19.1]} 30. Qxe8+
{[%clk 0:01:17.6]} 30... Kg7 {[%clk 0:01:19.2]} 31. Qd7+ {[%clk 0:01:04.9]}
31... Qxd7 {[%clk 0:01:18.3]} 32. Rxd7+ {[%clk 0:01:05.8]} 1-0